fUSD/lending_fUSD_20240317
["ID","MTS","AMOUNT","RATE_DAILY","PERIOD"]
[319343051,1710679840807,-29629.37542832,0.00019,2]
[319343052,1710679840820,-994.79225928,0.00019,2]
[319343053,1710679840831,-399.07475712,0.00019,2]
[319343054,1710679840842,-19132.136746,0.00019,2]
[319343055,1710679840970,-284.00953083,0.00018998,2]
[319343056,1710679840979,-2725.02122217,0.00019,2]
[319343057,1710679840990,-1997.20000001,0.00019,2]
[319343058,1710679841008,-2085.44469982,0.00019,2]
[319343063,1710679843283,-296.71847077,0.00018903,2]
[319343064,1710679843293,-2653.90197014,0.00019,2]
[319343065,1710679843304,-30250.96358691,0.00019,2]
[319343066,1710679843316,-2677.790628,0.00019,2]
[319343067,1710679843328,-2377.036302,0.00019,2]
[319343068,1710679843575,-11592.61265993,0.00019,2]
[319343085,1710679844661,-0.72551163,0.00019,2]
[319343086,1710679844680,-21062.95319999,0.00019,2]
[319343087,1710679844713,-519.53723051,0.00019,2]
[319343092,1710679846267,-172.19273836,0.00018,2]
[319343095,1710679846276,-416.60724164,0.00019,2]
[319343105,1710679846415,-16665.81756303,0.00019,2]
[319343106,1710679847518,-2616.77659432,0.00019,2]
[319343107,1710679847530,-2277.56678615,0.00019,2]
[319343108,1710679847646,-13340.0,0.00018999,2]
[319343109,1710679847658,-3559.99999998,0.00018999,2]
[319343110,1710679847670,-3340.4,0.00018999,2]
[319343111,1710679847716,-46468.03787235,0.00018999,2]
[319343112,1710679847725,-22536.95527213,0.00019,2]
[319343127,1710680575894,4686.19326045,0.000242,120]
[319343128,1710680603039,71734.22739788,0.000242,120]
[319343129,1710680637699,787.97603515,0.0001,2]
[319343148,1710681031456,-746.1257008,0.00014998,2]
[319343149,1710681031466,-1206.7605597,0.00014999,2]
[319343150,1710681031478,-1766.82365361,0.00014999,2]
[319343151,1710681031487,-550.0,0.00015,3]
[319343152,1710681031497,-768.51,0.00015184,2]
[319343153,1710681031507,-242.83634639,0.00015372,2]
[319343180,1710681037525,-419.6410628,0.00015372,2]
[319343183,1710681037542,-1392.1962109,0.00015372,2]
[319343185,1710681037551,-852.67244975,0.00016923,2]
[319343187,1710681037562,-2215.71544095,0.00016923,2]
[319343189,1710681037585,-20831.6121093,0.00016923,2]
[319343190,1710681037595,-10277.15,0.00016959,2]
[319343191,1710681037604,-300.0,0.00016997,2]
[319343192,1710681037626,-600.0,0.00017,3]
[319343193,1710681037635,-1500.0,0.00017001,4]
[319343194,1710681037645,-155.0,0.00017008,2]
[319343195,1710681037655,-175.84,0.00017009,2]
[319343196,1710681037664,-500.0,0.00017014,2]
[319343197,1710681037676,-805.88,0.00017014,2]
[319343198,1710681037686,-250.0,0.00017014,2]
[319343199,1710681037698,-467.58,0.00017014,2]
[319343200,1710681037708,-499.99,0.00017014,2]
[319343201,1710681037719,-194.12,0.00017018,2]
[319343202,1710681037728,-186.6,0.00017018,2]
[319343203,1710681037737,-2456.62,0.00017054,2]
[319343204,1710681037747,-211.38,0.00017081,2]
[319343205,1710681037757,-17817.96,0.00017084,2]
[319343206,1710681037767,-19999.99,0.00017084,2]
[319343207,1710681037776,-178.96,0.00017124,2]
[319343208,1710681037787,-152.1045081,0.00017273,2]
[319343209,1710681037796,-152.3,0.00017326,2]
[319343210,1710681037817,-150.80584849,0.00017331,2]
[319343211,1710681037826,-154.64225514,0.00017351,2]
[319343212,1710681037837,-239.34,0.00017436,2]
[319343213,1710681037847,-768.51,0.00017448,2]
[319343214,1710681037856,-178.96,0.0001757,2]
[319343215,1710681037866,-167.0,0.0001758,2]
[319343216,1710681037876,-150.91301712,0.00017595,2]
[319343217,1710681037885,-154.64225514,0.00017626,2]
[319343218,1710681037894,-154.64225514,0.00017664,2]
[319343219,1710681037904,-153.01160755,0.00017681,2]
[319343220,1710681037913,-152.3,0.0001773,2]
[319343221,1710681037923,-41055.903,0.0001773,2]
[319343223,1710681037933,-152.1045081,0.00017749,2]
[319343225,1710681037942,-152.1045081,0.00017798,2]
[319343227,1710681037951,-152.1045081,0.00017875,2]
[319343229,1710681037961,-4710.09391859,0.0001788,2]
[319343231,1710681037971,-238.66247434,0.0001789,2]
[319343233,1710681037980,-152.1045081,0.00017935,2]
[319343235,1710681037990,-947.16144488,0.00017987,2]
[319343237,1710681037999,-4256.28107072,0.00018,5]
[319343239,1710681038008,-178.96,0.00018016,2]
[319343241,1710681038018,-154.64225514,0.00018017,2]
[319343243,1710681038027,-150.21260499,0.00018068,2]
[319343245,1710681038037,-1000.0,0.00018082,2]
[319343247,1710681038046,-154.52759481,0.00018122,2]
[319343249,1710681038056,-152.3,0.00018135,2]
[319343251,1710681038066,-151.45421479,0.00018152,2]
[319343253,1710681038078,-603.0,0.00018197,2]
[319343255,1710681038088,-278.0,0.00018197,2]
[319343257,1710681038097,-551.0,0.000182,2]
[319343259,1710681038107,-151.45421479,0.00018361,2]
[319343261,1710681038117,-152.1045081,0.00018379,2]
[319343263,1710681038126,-175.24221204,0.00018392,2]
[319343266,1710681038135,-151.16603038,0.00018445,2]
[319343268,1710681038145,-154.64225514,0.00018462,2]
[319343270,1710681038154,-152.3,0.00018539,2]
[319343272,1710681038163,-167.76085613,0.00018748,2]
[319343274,1710681038172,-154.64225514,0.00018754,2]
[319343276,1710681038181,-2184.7256,0.00018785,2]
[319343278,1710681038191,-153.01160755,0.00018791,2]
[319343280,1710681038201,-160.22220437,0.00018794,2]
[319343282,1710681038210,-1460.1223,0.00018798,2]
[319343284,1710681038220,-639.9168,0.000188,2]
[319343286,1710681038230,-177.65584597,0.000188,2]
[319343288,1710681038240,-154.64225514,0.00018835,2]
[319343290,1710681038249,-152.1045081,0.00018841,2]
[319343292,1710681038259,-160.22220435,0.00018847,2]
[319343294,1710681038268,-53631.56248639,0.00018885,2]
[319343296,1710681038278,-104984.62560126,0.0001889,2]
[319343311,1710681039576,-740.83310956,0.0001889,2]
[319343312,1710681039589,-359.58943198,0.0001889,2]
[319343313,1710681039601,-630.36829734,0.0001889,2]
[319343314,1710681039613,-2361.8855924,0.0001889,2]
[319343315,1710681039625,-2681.98083323,0.0001889,2]
[319343316,1710681039641,-535.85788251,0.0001889,2]
[319343317,1710681039653,-1737.61932229,0.0001889,2]
[319343318,1710681039665,-521.67,0.0001889,2]
[319343319,1710681039698,-1121.04365236,0.0001889,2]
[319343320,1710681039709,-294.0296114,0.0001889,2]
[319343321,1710681039767,-8486.6513375,0.0001889,2]
[319343322,1710681039779,-1415.55102347,0.0001889,2]
[319343323,1710681039790,-344.00702229,0.0001889,2]
[319343324,1710681039803,-668.16681472,0.0001889,2]
[319343325,1710681039815,-1391.19789796,0.0001889,2]
[319343326,1710681039843,-760.01039041,0.0001889,2]
[319343327,1710681039855,-738.70204546,0.0001889,2]
[319343399,1710681042405,-553.618061,0.0001889,2]
[319343401,1710681042418,-1909.2,0.0001889,2]
[319343406,1710681042465,-1976.55237571,0.0001889,2]
[319343407,1710681042477,-3408.99275458,0.0001889,2]
[319343408,1710681042486,-185.61926963,0.00018894,2]
[319343409,1710681042496,-13340.0,0.00018898,2]
[319343410,1710681042505,-164.87044309,0.00018898,2]
[319343411,1710681042515,-214.29692718,0.00018898,2]
[319343412,1710681042525,-155.0,0.00018898,2]
[319343413,1710681042534,-11706.06382632,0.00018898,2]
[319343414,1710681042544,-153.1567792,0.00018898,2]
[319343415,1710681042753,-119.10242338,0.00018898,2]
[319343416,1710681042764,-276.89395026,0.00018898,2]
[319343417,1710681042774,-155.06061372,0.00018898,2]
[319343418,1710681042783,-898.64751855,0.00018898,2]
[319343419,1710681042792,-3582.89480227,0.00018898,2]
[319343420,1710681042805,-1247.33867596,0.00018898,2]
[319343421,1710681042822,-5707.1158884,0.00018898,2]
[319343422,1710681042832,-277.82975373,0.00018898,2]
[319343423,1710681042841,-549.84565853,0.00018898,2]
[319343424,1710681042850,-658.63215977,0.00018898,2]
[319343425,1710681042859,-400.0,0.00018898,2]
[319343426,1710681042868,-483.89332562,0.00018898,2]
[319343427,1710681042878,-1052.77885115,0.00018898,2]
[319343428,1710681042888,-2564.5448047,0.00018898,2]
[319343429,1710681042902,-2939.65368621,0.00018898,2]
[319343430,1710681042912,-1585.05895151,0.00018898,2]
[319343431,1710681042922,-231.33804712,0.00018898,2]
[319343432,1710681042933,-275.39122516,0.00018898,2]
[319343433,1710681042946,-2214.78477128,0.00018898,2]
[319343434,1710681042956,-234.87052309,0.00018898,2]
[319343435,1710681042966,-286.25173273,0.00018898,2]
[319343436,1710681042977,-500.0,0.00018899,2]
[319343437,1710681042988,-500.0,0.00018899,2]
[319343438,1710681042998,-382.1274399,0.00018899,2]
[319343439,1710681043008,-500.0,0.00018899,2]
[319343440,1710681043017,-487.34,0.00018899,2]
[319343441,1710681043029,-646.54,0.00018899,2]
[319343442,1710681043039,-583.3490823,0.00018899,2]
[319343443,1710681043048,-500.0,0.00018899,2]
[319343444,1710681043058,-623.1780023,0.00018899,2]
[319343445,1710681043067,-500.0,0.00018899,2]
[319343446,1710681043077,-500.0,0.00018899,2]
[319343447,1710681043086,-500.0,0.00018899,2]
[319343448,1710681043096,-500.0,0.00018899,2]
[319343450,1710681043106,-500.0,0.00018899,2]
[319343451,1710681043115,-500.0,0.00018899,2]
[319343452,1710681043124,-500.0,0.00018899,2]
[319343453,1710681043134,-500.0,0.00018899,2]
[319343454,1710681043143,-500.0,0.00018899,2]
[319343455,1710681043152,-500.0,0.00018899,2]
[319343456,1710681043161,-535.06449844,0.00018899,2]
[319343457,1710681043170,-332.00000041,0.00018899,2]
[319343458,1710681043179,-500.0,0.00018899,2]
[319343459,1710681043188,-500.0,0.00018899,2]
[319343460,1710681043198,-500.0,0.00018899,2]
[319343461,1710681043207,-500.0,0.00018899,2]
[319343462,1710681043217,-500.0,0.00018899,2]
[319343463,1710681043226,-500.0,0.00018899,2]
[319343464,1710681043235,-500.0,0.00018899,2]
[319343465,1710681043245,-500.0,0.00018899,2]
[319343466,1710681043254,-500.0,0.00018899,2]
[319343467,1710681043263,-500.0,0.00018899,2]
[319343468,1710681043273,-153.3033297,0.00018899,2]
[319343469,1710681043283,-500.0,0.00018899,2]
[319343470,1710681043292,-46.94980324,0.00018899,2]
[319343471,1710681043305,-7884.02019676,0.00018899,2]
[319343472,1710681043314,-552.59927407,0.00018899,2]
[319343477,1710681045537,-7378.37072593,0.00018899,2]
[319343478,1710681045546,-7930.97,0.00018899,2]
[319343479,1710681045556,-7930.97,0.00018899,2]
[319343480,1710681045565,-7930.97,0.00018899,2]
[319343481,1710681045575,-7930.97,0.00018899,2]
[319343482,1710681045584,-7930.97,0.00018899,2]
[319343483,1710681045595,-7930.97,0.00018899,2]
[319343484,1710681045608,-7930.97,0.00018899,2]
[319343485,1710681045617,-500.0,0.00018899,2]
[319343486,1710681045626,-500.0,0.00018899,2]
[319343487,1710681045636,-500.0,0.00018899,2]
[319343488,1710681045645,-500.0,0.00018899,2]
[319343489,1710681045654,-500.0,0.00018899,2]
[319343490,1710681045664,-500.0,0.00018899,2]
[319343491,1710681045673,-500.0,0.00018899,2]
[319343492,1710681045682,-333.84,0.00018899,2]
[319343493,1710681045692,-2279.19,0.00018899,2]
[319343494,1710681045706,-2279.19,0.00018899,2]
[319343495,1710681045715,-2279.19,0.00018899,2]
[319343496,1710681045724,-2279.19,0.00018899,2]
[319343497,1710681045734,-2279.19,0.00018899,2]
[319343498,1710681045743,-2279.19,0.00018899,2]
[319343499,1710681045753,-2279.19,0.00018899,2]
[319343500,1710681045762,-2279.19,0.00018899,2]
[319343501,1710681045771,-2279.19,0.00018899,2]
[319343502,1710681045781,-500.0,0.00018899,2]
[319343503,1710681045791,-500.0,0.00018899,2]
[319343504,1710681045800,-500.0,0.00018899,2]
[319343505,1710681045809,-500.0,0.00018899,2]
[319343506,1710681045819,-500.0,0.00018899,2]
[319343507,1710681045833,-500.0,0.00018899,2]
[319343508,1710681045848,-500.0,0.00018899,2]
[319343509,1710681045860,-500.0,0.00018899,2]
[319343510,1710681045871,-500.0,0.00018899,2]
[319343511,1710681045882,-500.0,0.00018899,2]
[319343512,1710681045894,-500.0,0.00018899,2]
[319343513,1710681045905,-500.0,0.00018899,2]
[319343514,1710681045916,-283.4829094,0.00018899,2]
[319343517,1710681045928,-590.62430401,0.00018899,2]
[319343519,1710681045940,-449.54270072,0.00018899,2]
[319343521,1710681045950,-231.56647905,0.00018899,2]
[319343523,1710681045962,-500.0,0.00018899,2]
[319343525,1710681045972,-500.0,0.00018899,2]
[319343527,1710681045982,-500.0,0.00018899,2]
[319343529,1710681045991,-631.96927056,0.00018899,2]
[319343531,1710681046002,-500.0,0.00018899,2]
[319343533,1710681046013,-500.0,0.00018899,2]
[319343535,1710681046023,-500.0,0.00018899,2]
[319343537,1710681046033,-500.0,0.00018899,2]
[319343540,1710681046044,-500.0,0.00018899,2]
[319343542,1710681046055,-500.0,0.00018899,2]
[319343544,1710681046066,-500.0,0.00018899,2]
[319343546,1710681046076,-500.0,0.00018899,2]
[319343548,1710681046086,-500.0,0.00018899,2]
[319343550,1710681046100,-500.0,0.00018899,2]
[319343553,1710681046110,-500.0,0.00018899,2]
[319343555,1710681046121,-593.25415847,0.00018899,2]
[319343557,1710681046132,-500.0,0.00018899,2]
[319343559,1710681046142,-500.0,0.00018899,2]
[319343561,1710681046152,-500.0,0.00018899,2]
[319343563,1710681046164,-500.0,0.00018899,2]
[319343566,1710681046174,-500.0,0.00018899,2]
[319343568,1710681046184,-500.0,0.00018899,2]
[319343570,1710681046193,-500.0,0.00018899,2]
[319343572,1710681046203,-267.90564738,0.00018899,2]
[319343574,1710681046213,-500.0,0.00018899,2]
[319343576,1710681046224,-2179386.02473282,0.000189,2]
[319343578,1710681046235,-296.71847077,0.000189,2]
[319343580,1710681046246,-177.65584597,0.000189,2]
[319343583,1710681046256,-157.56346795,0.000189,2]
[319343585,1710681046266,-157.56346795,0.000189,2]
[319343587,1710681046276,-160.22220435,0.000189,2]
[319343589,1710681046286,-163.353151,0.00018904,2]
[319343591,1710681046297,-152.1045081,0.0001892,2]
[319343593,1710681046308,-154.64225514,0.00018934,2]
[319343596,1710681046318,-152.1045081,0.00018967,2]
[319343598,1710681046328,-279.01384291,0.00018992,2]
[319343600,1710681046339,-4459.2924964,0.00018992,2]
[319343602,1710681046351,-500.0,0.00018993,2]
[319343604,1710681046361,-7930.97,0.00018993,2]
[319343606,1710681046372,-2279.19,0.00018993,2]
[319343608,1710681046382,-871.5278392,0.00018994,2]
[319343611,1710681046394,-54078.4183002,0.00018994,2]
[319343613,1710681046404,-1408.8525071,0.00018994,2]
[319343615,1710681046414,-3611.6150646,0.00018994,2]
[319343617,1710681046425,-2763.9376329,0.00018994,2]
[319343619,1710681046435,-1916.2602012,0.00018994,2]
[319343621,1710681046445,-500.0,0.00018997,2]
[319343623,1710681046455,-8435.80074504,0.00018998,2]
[319343625,1710681046465,-155.0,0.00018998,2]
[319343627,1710681046475,-1839.2246,0.00018998,2]
[319343629,1710681046485,-198.77878798,0.00018998,2]
[319343632,1710681046495,-500.0,0.00018998,2]
[319343634,1710681046509,-500.0,0.00018998,2]
[319343636,1710681046520,-500.0,0.00018998,2]
[319343638,1710681046543,-500.0,0.00018998,2]
[319343640,1710681046559,-7930.97,0.00018998,2]
[319343642,1710681046570,-7930.97,0.00018998,2]
[319343644,1710681046582,-2279.19,0.00018998,2]
[319343647,1710681046598,-2279.19,0.00018998,2]
[319343649,1710681046616,-207.00003462,0.00018999,2]
[319343651,1710681046628,-155.0,0.00018999,2]
[319343653,1710681046640,-3967.39244542,0.00018999,2]
[319343655,1710681046654,-274974.30815372,0.00018999,2]
[319343657,1710681046666,-1000.0,0.00018999,2]
[319343659,1710681046681,-1000.0,0.00018999,3]
[319343661,1710681046694,-1000.0,0.00018999,4]
[319343663,1710681046704,-1000.0,0.00018999,5]
[319343665,1710681046715,-1000.0,0.00018999,6]
[319343667,1710681046728,-1000.0,0.00018999,7]
[319343669,1710681046739,-500.0,0.00018999,2]
[319343670,1710681046750,-461.05544585,0.00018999,2]
[319343671,1710681046763,-500.0,0.00018999,2]
[319343672,1710681046773,-500.0,0.00018999,2]
[319343673,1710681046784,-217.8,0.00018999,2]
[319343674,1710681046795,-7930.97,0.00018999,2]
[319343675,1710681046806,-7930.97,0.00018999,2]
[319343676,1710681046817,-7930.97,0.00018999,2]
[319343677,1710681046828,-7930.97,0.00018999,2]
[319343678,1710681046838,-7930.97,0.00018999,2]
[319343680,1710681046854,-7930.97,0.00018999,2]
[319343682,1710681046865,-7930.97,0.00018999,2]
[319343684,1710681046876,-7930.97,0.00018999,2]
[319343687,1710681046887,-7930.97,0.00018999,2]
[319343689,1710681046898,-7930.97,0.00018999,2]
[319343691,1710681046908,-7930.97,0.00018999,2]
[319343693,1710681046918,-7931.07769354,0.00018999,2]
[319343695,1710681046929,-2279.19,0.00018999,2]
[319343697,1710681046940,-217.06954072,0.00019,3]
[319343699,1710681046950,-2903.06168558,0.00019,2]
[319343701,1710681046960,-271202.02399782,0.00019,2]
[319343707,1710681047163,-3543.21428543,0.00019,2]
[319343708,1710681047176,-1480.00000167,0.00019,2]
[319343709,1710681047197,-1063.74952412,0.00019,2]
[319343710,1710681047214,-607.0,0.00019,2]
[319343711,1710681047226,-343.14739736,0.00019,2]
[319343712,1710681047239,-791.69739583,0.00019,2]
[319343713,1710681047251,-377.34566948,0.00019,2]
[319343714,1710681047273,-2051.37420519,0.00019,2]
[319343715,1710681047286,-1020.294,0.00019,2]
[319343716,1710681047299,-354.51493582,0.00019,2]
[319343717,1710681047311,-16975.0,0.00019,2]
[319343718,1710681047323,-432.27653367,0.00019,2]
[319343719,1710681047347,-258.90026698,0.00019,2]
[319343720,1710681047370,-8474.11798068,0.00019,2]
[319343721,1710681047382,-13527.46622335,0.00019,2]
[319343722,1710681047394,-17608.51619059,0.00019,2]
[319343723,1710681047406,-16138.89358003,0.00019,2]
[319343724,1710681047418,-3329.31052029,0.00019,2]
[319343725,1710681047430,-599.03154491,0.00019,2]
[319343726,1710681047442,-16769.66945243,0.00019,2]
[319343727,1710681047454,-6125.91932275,0.00019,2]
[319343738,1710681421224,10010.0,0.0001,10]
[319343776,1710682107367,1948.85653654,0.00023,120]
[319343778,1710682188112,500.0,0.0002,30]
[319343779,1710682223404,500.0,0.00022,30]
[319343782,1710682231605,-158.09190079,0.00014384,2]
[319343783,1710682231614,-160.27930951,0.00014385,2]
[319343784,1710682231624,-198.84066801,0.00014386,2]
[319343785,1710682231633,-498.93044562,0.00014386,2]
[319343786,1710682231644,-35002.86712924,0.00014386,2]
[319343787,1710682231653,-409.78379081,0.00014387,2]
[319343788,1710682231663,-5505.90171585,0.00014387,2]
[319343789,1710682231672,-4171.39722441,0.00014388,2]
[319343790,1710682231682,-150.0,0.00014388,2]
[319343791,1710682231691,-2973.58421331,0.00014389,2]
[319343792,1710682231701,-4302.00755965,0.0001439,2]
[319343793,1710682231710,-762.51,0.00014399,2]
[319343794,1710682231719,-533.72972942,0.00014671,2]
[319343795,1710682231727,-162.02287711,0.00014688,2]
[319343796,1710682231736,-162.02287711,0.0001551,2]
[319343797,1710682231746,-210.0,0.00015826,2]
[319343798,1710682231756,-11573.87,0.00016132,2]
[319343799,1710682231765,-499.99,0.00016132,2]
[319343800,1710682231775,-299.99,0.00016132,2]
[319343801,1710682231784,-150.99,0.00016132,2]
[319343802,1710682231795,-150.0,0.00016141,2]
[319343803,1710682231805,-655.5058548,0.00016148,2]
[319343804,1710682231814,-150.99,0.00016148,2]
[319343805,1710682231824,-500.0,0.00016247,2]
[319343806,1710682231833,-1984.57,0.00016249,2]
[319343807,1710682231842,-644.71,0.00016256,2]
[319343808,1710682231851,-2751.0,0.00016257,2]
[319343809,1710682231861,-5000.0,0.00016272,2]
[319343810,1710682231870,-250.0,0.00016278,2]
[319343811,1710682231879,-4741.53,0.00016301,2]
[319343812,1710682231889,-8191.62,0.00016301,2]
[319343813,1710682231898,-647.78,0.00016305,2]
[319343814,1710682231907,-191.47,0.00016318,2]
[319343815,1710682231917,-200.0,0.00016332,2]
[319343816,1710682231926,-162.02287711,0.00016333,2]
[319343817,1710682231940,-250.0,0.0001635,2]
[319343818,1710682231949,-166.78,0.00016413,2]
[319343819,1710682231959,-200.0,0.00016438,2]
[319343821,1710682231969,-2467.14,0.00016438,2]
[319343823,1710682231979,-8102.0,0.0001645,2]
[319343825,1710682231988,-1632.54,0.00016489,2]
[319343827,1710682231999,-23900.0,0.00016581,2]
[319343829,1710682232009,-909.17,0.00016591,4]
[319343831,1710682232018,-1068.36,0.00016606,2]
[319343833,1710682232028,-183.68,0.00016611,2]
[319343835,1710682232037,-183.68,0.00016656,2]
[319343837,1710682232048,-762.51,0.00016662,2]
[319343839,1710682232057,-183.68,0.00016702,2]
[319343841,1710682232074,-355.29,0.00016739,2]
[319343843,1710682232083,-183.68,0.00016747,2]
[319343845,1710682232094,-200.0,0.00016749,2]
[319343847,1710682232104,-167.0,0.0001676,2]
[319343849,1710682232113,-183.68,0.00016793,2]
[319343851,1710682232123,-183.68,0.00016838,2]
[319343853,1710682232132,-183.68,0.00016884,2]
[319343855,1710682232142,-183.68,0.0001693,2]
[319343857,1710682232152,-183.68,0.00016975,2]
[319343859,1710682232162,-183.68,0.00017021,2]
[319343861,1710682232171,-183.68,0.00017066,2]
[319343863,1710682232180,-745.37502554,0.00017098,2]
[319343865,1710682232190,-155.0,0.00017098,2]
[319343867,1710682232199,-183.68,0.00017112,2]
[319343869,1710682232208,-159.33,0.00017153,2]
[319343870,1710682232218,-162.02287711,0.00017155,2]
[319343873,1710682232227,-183.68,0.00017157,2]
[319343875,1710682232236,-183.68,0.00017203,2]
[319343876,1710682232245,-183.68,0.00017249,2]
[319343878,1710682232255,-167.0,0.00017254,2]
[319343880,1710682232264,-183.68,0.00017294,2]
[319343882,1710682232273,-152.4406233,0.00017323,2]
[319343884,1710682232283,-159.09,0.00017328,2]
[319343887,1710682232292,-151.55661081,0.00017339,2]
[319343888,1710682232303,-183.68,0.0001734,2]
[319343891,1710682232313,-152.4406233,0.00017347,2]
[319343892,1710682232323,-183.68,0.00017385,2]
[319343894,1710682232333,-152.4406233,0.00017396,2]
[319343896,1710682232342,-293.0,0.00017409,2]
[319343898,1710682232352,-183.68,0.00017431,2]
[319343900,1710682232362,-183.68,0.00017476,2]
[319343903,1710682232371,-153.01160755,0.00017522,2]
[319343905,1710682232381,-166.66666668,0.00017659,2]
[319343906,1710682232390,-383.73,0.00017675,2]
[319343908,1710682232400,-383.73,0.0001774,2]
[319343911,1710682232409,-153.01160755,0.00017793,2]
[319343913,1710682232419,-383.73,0.00017805,2]
[319343914,1710682232429,-152.4406233,0.0001784,2]
[319343915,1710682232439,-408.50649891,0.00017858,2]
[319343917,1710682232449,-383.73,0.0001787,2]
[319343918,1710682232458,-187.04,0.00017887,2]
[319343919,1710682232468,-261.64373332,0.000179,2]
[319343920,1710682232477,-383.73,0.00017935,2]
[319343921,1710682232486,-157.82775289,0.00017936,2]
[319343922,1710682232496,-162.02287711,0.00017978,2]
[319343923,1710682232505,-383.73,0.00018001,2]
[319343924,1710682232515,-155.71899126,0.00018038,2]
[319343925,1710682232525,-151.55661081,0.00018057,2]
[319343926,1710682232534,-383.73,0.00018066,2]
[319343927,1710682232545,-383.73,0.00018131,2]
[319343928,1710682232554,-358.0,0.00018137,2]
[319343929,1710682232564,-352.0,0.00018137,2]
[319343930,1710682232573,-162.0,0.00018137,2]
[319343931,1710682232583,-21918.0,0.00018155,2]
[319343932,1710682232592,-358.0,0.00018164,2]
[319343933,1710682232601,-352.0,0.00018164,2]
[319343934,1710682232611,-162.0,0.00018164,2]
[319343935,1710682232622,-358.0,0.00018192,2]
[319343936,1710682232632,-352.0,0.00018192,2]
[319343937,1710682232642,-162.0,0.00018192,2]
[319343938,1710682232652,-383.73,0.00018196,2]
[319343939,1710682232661,-500.0,0.000182,2]
[319343940,1710682232670,-1631.0,0.000182,2]
[319343941,1710682232679,-150.21260499,0.00018217,2]
[319343942,1710682232689,-358.0,0.00018219,2]
[319343943,1710682232698,-352.0,0.00018219,2]
[319343944,1710682232708,-162.0,0.00018219,2]
[319343945,1710682232717,-358.0,0.00018247,2]
[319343946,1710682232727,-352.0,0.00018247,2]
[319343947,1710682232737,-162.0,0.00018247,2]
[319343948,1710682232746,-383.73,0.00018261,2]
[319343949,1710682232755,-358.0,0.00018274,2]
[319343950,1710682232764,-352.0,0.00018274,2]
[319343951,1710682232775,-162.0,0.00018274,2]
[319343952,1710682232784,-644.71,0.00018288,2]
[319343953,1710682232794,-151.55661081,0.00018295,2]
[319343954,1710682232804,-358.0,0.00018301,2]
[319343955,1710682232813,-352.0,0.00018301,2]
[319343956,1710682232824,-162.0,0.00018301,2]
[319343957,1710682232834,-383.73,0.00018326,2]
[319343958,1710682232843,-358.0,0.00018329,2]
[319343959,1710682232854,-352.0,0.00018329,2]
[319343960,1710682232864,-162.0,0.00018329,2]
[319343961,1710682232873,-358.0,0.00018356,2]
[319343962,1710682232883,-352.0,0.00018356,2]
[319343963,1710682232893,-162.0,0.00018356,2]
[319343964,1710682232902,-1000.0,0.00018356,2]
[319343965,1710682232912,-191.47,0.00018357,2]
[319343966,1710682232921,-358.0,0.00018384,2]
[319343967,1710682232930,-352.0,0.00018384,2]
[319343968,1710682232942,-162.0,0.00018384,2]
[319343969,1710682232951,-383.73,0.00018391,2]
[319343970,1710682232961,-358.0,0.00018411,2]
[319343971,1710682232971,-352.0,0.00018411,2]
[319343972,1710682232981,-167.0,0.00018411,2]
[319343973,1710682232990,-358.0,0.00018438,2]
[319343974,1710682233000,-352.0,0.00018438,2]
[319343975,1710682233009,-151.55661081,0.00018447,2]
[319343976,1710682233019,-474.244,0.00018448,2]
[319343977,1710682233029,-383.73,0.00018456,2]
[319343978,1710682233038,-358.0,0.00018466,2]